[Event "2026 European Womens Championship"]
[Site "Batumi, GE"]
[Date "2026.06.05"]
[Round "11"]
[White "Kazarian, Anna-Maja"]
[Black "Javakhishvili, Lela"]
[Result "0-1"]
[Board "15"]
[TimeControl "5400+30"]
[WhiteFideId "1033689"]
[BlackFideId "13601458"]
[WhiteElo "2317"]
[BlackElo "2442"]
[WhiteTitle "FM"]
[BlackTitle "IM"]
[WhiteClock "0:28:50"]
[BlackClock "0:23:59"]
[Variant "Standard"]

1. e4 {[%clk 1:30:57]}  c5 {[%clk 1:30:41]} 2. Nf3 {[%clk 1:31:22]}  e6 {[%clk 1:31:05]} 3. d4 {[%clk 1:31:46]}  cxd4 {[%clk 1:31:31]}
4. Nxd4 {[%clk 1:32:12]}  Nc6 {[%clk 1:31:45]} 5. Nc3 {[%clk 1:32:11]}  a6 {[%clk 1:32:02]} 6. a3 {[%clk 1:28:55]}  d6 {[%clk 1:26:49]}
7. Be3 {[%clk 1:25:52]}  Nf6 {[%clk 1:27:00]} 8. Be2 {[%clk 1:23:40]}  Be7 {[%clk 1:27:09]} 9. f4 {[%clk 1:21:06]}  Qc7 {[%clk 1:26:18]}
10. O-O {[%clk 1:16:12]}  O-O {[%clk 1:26:17]} 11. Kh1 {[%clk 1:15:33]}  Na5 {[%clk 1:23:12]} 12. Qd3 {[%clk 1:06:54]}  b5 {[%clk 1:23:23]}
13. b4 {[%clk 0:53:15]}  Nb7 {[%clk 1:05:00]} 14. e5 {[%clk 0:48:17]}  dxe5 {[%clk 0:57:24]} 15. fxe5 {[%clk 0:48:36]}  Nd7 {[%clk 0:57:01]}
16. Bf4 {[%clk 0:45:18]}  Nxe5 {[%clk 0:54:12]} 17. Qg3 {[%clk 0:43:51]}  f6 {[%clk 0:54:38]} 18. Ne4 {[%clk 0:36:00]}  Bd7 {[%clk 0:45:21]}
19. Bh6 {[%clk 0:34:41]}  g6 {[%clk 0:45:09]} 20. Bxf8 {[%clk 0:27:28]}  Rxf8 {[%clk 0:45:33]} 21. Rad1 {[%clk 0:27:19]}  Nd8 {[%clk 0:42:43]}
22. Rf2 {[%clk 0:16:50]}  Bc8 {[%clk 0:31:03]} 23. Rdf1 {[%clk 0:14:33]}  f5 {[%clk 0:31:22]} 24. Ng5 {[%clk 0:14:11]}  Bd6 {[%clk 0:28:31]}
25. Qh4 {[%clk 0:12:11]}  Qg7 {[%clk 0:26:10]} 26. Rd1 {[%clk 0:10:54]}  Be7 {[%clk 0:26:26]} 27. Qg3 {[%clk 0:08:31]}  h6 {[%clk 0:25:55]}
28. Nh3 {[%clk 0:05:51]}  g5 {[%clk 0:25:06]} 29. Qb3 {[%clk 0:05:36]}  Nef7 {[%clk 0:15:42]} 30. a4 {[%clk 0:03:02]}  bxa4 {[%clk 0:12:55]}
31. Qxa4 {[%clk 0:03:17]}  g4 {[%clk 0:11:01]} 32. Nf4 {[%clk 0:02:51]}  Ng5 {[%clk 0:09:00]} 33. Rff1 {[%clk 0:00:53]}  e5 {[%clk 0:07:41]}
34. Bc4+ {[%clk 0:00:58]}  Kh7 {[%clk 0:06:43]} 35. Nd5 {[%clk 0:00:52]}  exd4 {[%clk 0:06:30]} 36. Bxa6 {[%clk 0:01:08]}  Be6 {[%clk 0:02:08]}
37. Nxe7 {[%clk 0:01:15]}  Qxe7 {[%clk 0:02:34]} 38. Rxd4 {[%clk 0:01:29]}  Ndf7 {[%clk 0:02:47]} 39. Re1 {[%clk 0:00:59]}  Ne4 {[%clk 0:02:19]}
40. Bb7 {[%clk 0:00:38]}  Qxb7 {[%clk 0:02:24]} 41. c4 {[%clk 0:30:04]}  Ra8 {[%clk 0:28:28]} 42. Qc2 {[%clk 0:30:09]}  Nfg5 {[%clk 0:27:58]}
43. c5 {[%clk 0:30:02]}  Ra2 {[%clk 0:26:39]} 44. c6 {[%clk 0:30:28]}  Qa7 {[%clk 0:23:40]} 45. Qxa2 {[%clk 0:28:50]}  Qxa2 {[%clk 0:23:59]} 0-1

[Event "2026 European Womens Championship"]
[Site "Batumi, GE"]
[Date "2026.06.05"]
[Round "11"]
[White "Buksa, Nataliya"]
[Black "Gvetadze, Sofio"]
[Result "1-0"]
[Board "16"]
[TimeControl "5400+30"]
[WhiteFideId "14123622"]
[BlackFideId "13601440"]
[WhiteElo "2392"]
[BlackElo "2311"]
[WhiteTitle "IM"]
[BlackTitle "IM"]
[WhiteClock "0:03:24"]
[BlackClock "0:01:45"]
[Variant "Standard"]

1. e4 {[%clk 1:30:40]}  c5 {[%clk 1:30:54]} 2. Nf3 {[%clk 1:31:02]}  d6 {[%clk 1:31:15]} 3. d4 {[%clk 1:31:16]}  cxd4 {[%clk 1:31:37]}
4. Nxd4 {[%clk 1:31:43]}  Nf6 {[%clk 1:31:57]} 5. Nc3 {[%clk 1:32:10]}  Nc6 {[%clk 1:32:10]} 6. Bg5 {[%clk 1:32:08]}  e6 {[%clk 1:31:34]}
7. Qd2 {[%clk 1:32:34]}  Be7 {[%clk 1:30:55]} 8. O-O-O {[%clk 1:30:01]}  O-O {[%clk 1:28:49]} 9. f4 {[%clk 1:19:18]}  Nxd4 {[%clk 1:26:36]}
10. Qxd4 {[%clk 1:19:45]}  Qa5 {[%clk 1:26:40]} 11. Kb1 {[%clk 1:16:09]}  Rd8 {[%clk 1:13:50]} 12. Bc4 {[%clk 1:10:15]}  e5 {[%clk 1:10:54]}
13. Qd3 {[%clk 0:48:07]}  exf4 {[%clk 1:00:24]} 14. Bxf4 {[%clk 0:48:34]}  Bg4 {[%clk 0:53:40]} 15. Rde1 {[%clk 0:44:34]}  Rac8 {[%clk 0:48:01]}
16. Bb3 {[%clk 0:40:33]}  Bh5 {[%clk 0:43:47]} 17. g4 {[%clk 0:33:16]}  Bg6 {[%clk 0:38:29]} 18. h4 {[%clk 0:27:24]}  h5 {[%clk 0:18:30]}
19. Nd5 {[%clk 0:26:52]}  Nxd5 {[%clk 0:18:10]} 20. Bxd5 {[%clk 0:27:19]}  Rd7 {[%clk 0:14:00]} 21. gxh5 {[%clk 0:26:49]}  Bxh5 {[%clk 0:13:45]}
22. Bg5 {[%clk 0:26:54]}  Bf8 {[%clk 0:13:23]} 23. Reg1 {[%clk 0:26:41]}  Rdc7 {[%clk 0:12:17]} 24. Rg2 {[%clk 0:18:24]}  Rc5 {[%clk 0:09:14]}
25. Bb3 {[%clk 0:15:37]}  Re8 {[%clk 0:06:13]} 26. Bh6 {[%clk 0:08:38]}  d5 {[%clk 0:04:31]} 27. Bxd5 {[%clk 0:06:47]}  Qb6 {[%clk 0:03:30]}
28. Bc1 {[%clk 0:05:57]}  Bg6 {[%clk 0:03:33]} 29. Rf1 {[%clk 0:04:56]}  Re7 {[%clk 0:03:15]} 30. Qh3 {[%clk 0:01:49]}  Rxe4 {[%clk 0:01:23]}
31. Rxg6 {[%clk 0:01:42]}  Rxd5 {[%clk 0:01:07]} 32. Rxb6 {[%clk 0:02:08]}  axb6 {[%clk 0:01:33]} 33. Qf3 {[%clk 0:02:30]}  f5 {[%clk 0:01:49]}
34. Qb3 {[%clk 0:02:57]}  Ree5 {[%clk 0:01:45]} 35. Rd1 {[%clk 0:03:24]} 1-0

[Event "2026 European Womens Championship"]
[Site "Batumi, GE"]
[Date "2026.06.05"]
[Round "11"]
[White "Efroimski, Marsel"]
[Black "Jarocka, Liwia"]
[Result "0-1"]
[Board "17"]
[TimeControl "5400+30"]
[WhiteFideId "2810964"]
[BlackFideId "21807558"]
[WhiteElo "2386"]
[BlackElo "2288"]
[WhiteTitle "IM"]
[BlackTitle "FM"]
[WhiteClock "0:01:39"]
[BlackClock "0:15:58"]
[Variant "Standard"]

1. e4 {[%clk 1:30:03]}  d6 {[%clk 1:30:46]} 2. d4 {[%clk 1:30:29]}  Nf6 {[%clk 1:31:11]} 3. Nc3 {[%clk 1:30:56]}  e5 {[%clk 1:31:34]}
4. Nf3 {[%clk 1:31:22]}  Nbd7 {[%clk 1:31:57]} 5. Rg1 {[%clk 1:31:47]}  h5 {[%clk 1:31:26]} 6. h3 {[%clk 1:30:46]}  c6 {[%clk 1:31:16]}
7. g4 {[%clk 1:30:38]}  hxg4 {[%clk 1:31:11]} 8. hxg4 {[%clk 1:31:06]}  exd4 {[%clk 1:30:58]} 9. Nxd4 {[%clk 1:25:24]}  Ne5 {[%clk 1:29:30]}
10. g5 {[%clk 1:22:21]}  Nfg4 {[%clk 1:28:51]} 11. f3 {[%clk 1:12:42]}  Qb6 {[%clk 1:25:49]} 12. Be2 {[%clk 1:09:20]}  Nh2 {[%clk 1:25:44]}
13. Be3 {[%clk 1:03:53]}  Qxb2 {[%clk 1:14:36]} 14. Kd2 {[%clk 1:02:00]}  d5 {[%clk 0:57:32]} 15. Rb1 {[%clk 0:58:22]}  Qa3 {[%clk 0:57:42]}
16. Rb3 {[%clk 0:58:05]}  Qa5 {[%clk 0:52:51]} 17. exd5 {[%clk 0:53:37]}  c5 {[%clk 0:42:24]} 18. Ndb5 {[%clk 0:52:47]}  c4 {[%clk 0:42:16]}
19. Bf4 {[%clk 0:36:47]}  cxb3 {[%clk 0:35:17]} 20. Bxe5 {[%clk 0:37:08]}  Bb4 {[%clk 0:34:02]} 21. a3 {[%clk 0:18:48]}  Bxc3+ {[%clk 0:25:57]}
22. Nxc3 {[%clk 0:11:40]}  Bf5 {[%clk 0:23:15]} 23. Bb5+ {[%clk 0:09:57]}  Kf8 {[%clk 0:21:33]} 24. g6 {[%clk 0:00:54]}  Rd8 {[%clk 0:20:20]}
25. d6 {[%clk 0:00:38]}  Qb6 {[%clk 0:19:51]} 26. Qe2 {[%clk 0:00:31]}  Qxg1 {[%clk 0:18:15]} 27. gxf7 {[%clk 0:00:31]}  bxc2 {[%clk 0:15:37]}
28. Na2 {[%clk 0:00:56]}  Qd1+ {[%clk 0:14:49]} 29. Qxd1 {[%clk 0:00:47]}  cxd1=Q+ {[%clk 0:15:14]} 30. Kxd1 {[%clk 0:01:12]}  Nxf3 {[%clk 0:15:37]}
31. Bf4 {[%clk 0:01:39]}  Rh1+ {[%clk 0:15:58]} 0-1

[Event "2026 European Womens Championship"]
[Site "Batumi, GE"]
[Date "2026.06.05"]
[Round "11"]
[White "Klek, Hanna Marie"]
[Black "Krasteva, Beloslava"]
[Result "1/2-1/2"]
[Board "18"]
[TimeControl "5400+30"]
[WhiteFideId "24670057"]
[BlackFideId "2922029"]
[WhiteElo "2369"]
[BlackElo "2285"]
[WhiteTitle "WGM"]
[BlackTitle "WGM"]
[WhiteClock "0:29:00"]
[BlackClock "0:28:24"]
[Variant "Standard"]

1. e4 {[%clk 1:30:58]}  d6 {[%clk 1:29:48]} 2. d4 {[%clk 1:31:21]}  Nf6 {[%clk 1:30:14]} 3. Nc3 {[%clk 1:31:46]}  e5 {[%clk 1:30:38]}
4. Nf3 {[%clk 1:32:03]}  Nbd7 {[%clk 1:30:58]} 5. Bc4 {[%clk 1:32:24]}  Be7 {[%clk 1:31:15]} 6. O-O {[%clk 1:32:42]}  O-O {[%clk 1:31:35]}
7. a4 {[%clk 1:32:56]}  exd4 {[%clk 1:31:35]} 8. Nxd4 {[%clk 1:27:03]}  Re8 {[%clk 1:31:41]} 9. Re1 {[%clk 1:26:01]}  Bf8 {[%clk 1:31:41]}
10. a5 {[%clk 1:19:35]}  c6 {[%clk 1:29:25]} 11. Bg5 {[%clk 1:11:18]}  Re5 {[%clk 1:29:21]} 12. f4 {[%clk 1:02:19]}  Rxa5 {[%clk 1:27:13]}
13. Ba2 {[%clk 1:00:06]}  Qb6 {[%clk 1:14:23]} 14. Kh1 {[%clk 0:56:31]}  Qxb2 {[%clk 0:59:56]} 15. Nb3 {[%clk 0:47:57]}  Qxc3 {[%clk 0:41:25]}
16. Nxa5 {[%clk 0:48:16]}  Nc5 {[%clk 0:40:33]} 17. Qf3 {[%clk 0:42:15]}  Ncxe4 {[%clk 0:27:41]} 18. Qxc3 {[%clk 0:40:35]}  Nxc3 {[%clk 0:28:05]}
19. Bxf6 {[%clk 0:40:31]}  gxf6 {[%clk 0:28:31]} 20. Re8 {[%clk 0:39:46]}  Nb5 {[%clk 0:27:33]} 21. Rae1 {[%clk 0:31:19]}  Nc7 {[%clk 0:26:42]}
22. Rd8 {[%clk 0:30:12]}  Bf5 {[%clk 0:25:09]} 23. Rxa8 {[%clk 0:25:43]}  Nxa8 {[%clk 0:25:37]} 24. Nxb7 {[%clk 0:24:40]}  d5 {[%clk 0:20:51]}
25. c3 {[%clk 0:15:02]}  Nb6 {[%clk 0:12:35]} 26. Re3 {[%clk 0:11:59]}  h5 {[%clk 0:10:20]} 27. Rg3+ {[%clk 0:10:07]}  Kh7 {[%clk 0:10:14]}
28. Nd8 {[%clk 0:09:50]}  h4 {[%clk 0:09:36]} 29. Re3 {[%clk 0:09:01]}  c5 {[%clk 0:03:00]} 30. Nc6 {[%clk 0:03:58]}  Bd6 {[%clk 0:01:41]}
31. g3 {[%clk 0:03:50]}  Be4+ {[%clk 0:01:29]} 32. Kg1 {[%clk 0:03:43]}  f5 {[%clk 0:01:38]} 33. Nxa7 {[%clk 0:02:48]}  d4 {[%clk 0:01:40]}
34. Rxe4 {[%clk 0:02:00]}  fxe4 {[%clk 0:02:03]} 35. Nb5 {[%clk 0:02:24]}  Be7 {[%clk 0:01:57]} 36. Bxf7 {[%clk 0:02:02]}  hxg3 {[%clk 0:02:05]}
37. hxg3 {[%clk 0:02:26]}  Bf6 {[%clk 0:01:21]} 38. cxd4 {[%clk 0:02:16]}  cxd4 {[%clk 0:01:27]} 39. Kf2 {[%clk 0:01:26]}  Na4 {[%clk 0:01:14]}
40. Bd5 {[%clk 0:00:54]}  Nc5 {[%clk 0:00:46]} 41. Nd6 {[%clk 0:29:00]}  e3+ {[%clk 0:28:24]} 1/2-1/2

[Event "2026 European Womens Championship"]
[Site "Batumi, GE"]
[Date "2026.06.05"]
[Round "11"]
[White "Mkrtchian, Lilit"]
[Black "Safarli, Josefine"]
[Result "1-0"]
[Board "19"]
[TimeControl "5400+30"]
[WhiteFideId "13300601"]
[BlackFideId "12900460"]
[WhiteElo "2366"]
[BlackElo "2253"]
[WhiteTitle "IM"]
[BlackTitle "WGM"]
[WhiteClock "0:22:33"]
[BlackClock "0:46:29"]
[Variant "Standard"]

1. d4 {[%clk 1:30:48]}  Nf6 {[%clk 1:30:44]} 2. Nf3 {[%clk 1:31:02]}  d5 {[%clk 1:31:10]} 3. c3 {[%clk 1:31:18]}  e6 {[%clk 1:31:35]}
4. Bf4 {[%clk 1:31:12]}  Bd6 {[%clk 1:31:33]} 5. e3 {[%clk 1:31:26]}  O-O {[%clk 1:31:56]} 6. Nbd2 {[%clk 1:31:34]}  b6 {[%clk 1:30:34]}
7. Ne5 {[%clk 1:27:28]}  c5 {[%clk 1:30:06]} 8. Bd3 {[%clk 1:26:15]}  Ba6 {[%clk 1:24:33]} 9. Bc2 {[%clk 1:25:11]}  Qc7 {[%clk 1:22:26]}
10. Bg3 {[%clk 1:23:30]}  Nc6 {[%clk 1:17:11]} 11. f4 {[%clk 1:23:25]}  Ne7 {[%clk 1:12:02]} 12. Bh4 {[%clk 1:10:32]}  Nf5 {[%clk 1:05:33]}
13. Bxf5 {[%clk 0:57:13]}  exf5 {[%clk 1:04:49]} 14. Bxf6 {[%clk 0:56:22]}  gxf6 {[%clk 1:05:15]} 15. Nef3 {[%clk 0:56:14]}  Rae8 {[%clk 1:01:06]}
16. Kf2 {[%clk 0:55:04]}  Bxf4 {[%clk 0:54:30]} 17. exf4 {[%clk 0:51:48]}  Re2+ {[%clk 0:54:55]} 18. Qxe2 {[%clk 0:50:02]}  Bxe2 {[%clk 0:55:22]}
19. Kxe2 {[%clk 0:50:28]}  Qxf4 {[%clk 0:55:47]} 20. Rhe1 {[%clk 0:49:12]}  Re8+ {[%clk 0:54:24]} 21. Kf2 {[%clk 0:49:23]}  Re4 {[%clk 0:53:49]}
22. Rad1 {[%clk 0:48:22]}  c4 {[%clk 0:47:03]} 23. g3 {[%clk 0:42:29]}  Qh6 {[%clk 0:41:30]} 24. Nxe4 {[%clk 0:40:22]}  fxe4 {[%clk 0:41:32]}
25. Nh4 {[%clk 0:40:35]}  f5 {[%clk 0:38:52]} 26. Ng2 {[%clk 0:33:09]}  f4 {[%clk 0:29:53]} 27. gxf4 {[%clk 0:30:40]}  f5 {[%clk 0:30:18]}
28. Kg1 {[%clk 0:28:48]}  Kf7 {[%clk 0:28:00]} 29. Re3 {[%clk 0:28:42]}  Qc6 {[%clk 0:24:47]} 30. a3 {[%clk 0:27:03]}  b5 {[%clk 0:20:34]}
31. Rh3 {[%clk 0:26:46]}  h6 {[%clk 0:20:16]} 32. Ne3 {[%clk 0:26:44]}  a5 {[%clk 0:19:14]} 33. Kh1 {[%clk 0:17:24]}  b4 {[%clk 0:16:10]}
34. axb4 {[%clk 0:17:47]}  axb4 {[%clk 0:16:37]} 35. Rh5 {[%clk 0:05:24]}  Qa4 {[%clk 0:13:15]} 36. Rxf5+ {[%clk 0:05:50]}  Ke6 {[%clk 0:13:34]}
37. Re5+ {[%clk 0:06:01]}  Kf7 {[%clk 0:13:55]} 38. Rf5+ {[%clk 0:06:18]}  Ke6 {[%clk 0:14:20]} 39. Rg1 {[%clk 0:03:36]}  bxc3 {[%clk 0:14:25]}
40. bxc3 {[%clk 0:03:55]}  Qa3 {[%clk 0:14:47]} 41. Re5+ {[%clk 0:24:48]}  Kf7 {[%clk 0:45:01]} 42. Nxd5 {[%clk 0:24:29]}  Qb2 {[%clk 0:44:26]}
43. Rxe4 {[%clk 0:24:35]}  Qf2 {[%clk 0:44:28]} 44. Re3 {[%clk 0:24:09]}  h5 {[%clk 0:44:33]} 45. h3 {[%clk 0:23:20]}  h4 {[%clk 0:44:54]}
46. Rg2 {[%clk 0:22:40]}  Qf1+ {[%clk 0:44:50]} 47. Kh2 {[%clk 0:23:06]}  Kf8 {[%clk 0:45:11]} 48. Ra2 {[%clk 0:22:24]}  Qb1 {[%clk 0:45:12]}
49. Ra8+ {[%clk 0:21:33]}  Kf7 {[%clk 0:45:39]} 50. Re7+ {[%clk 0:21:50]}  Kg6 {[%clk 0:46:05]} 51. Ra6+ {[%clk 0:22:09]}  Kf5 {[%clk 0:46:29]}
52. Re5# {[%clk 0:22:33]} 1-0

[Event "2026 European Womens Championship"]
[Site "Batumi, GE"]
[Date "2026.06.05"]
[Round "11"]
[White "Ismayil, Malak"]
[Black "Mkrtchyan, Mariam"]
[Result "0-1"]
[Board "20"]
[TimeControl "5400+30"]
[WhiteFideId "13412604"]
[BlackFideId "13310828"]
[WhiteElo "2122"]
[BlackElo "2365"]
[WhiteTitle "WIM"]
[BlackTitle "WGM"]
[WhiteClock "0:07:02"]
[BlackClock "0:15:25"]
[Variant "Standard"]

1. Nf3 {[%clk 1:30:54]}  d5 {[%clk 1:30:43]} 2. b3 {[%clk 1:31:20]}  c5 {[%clk 1:30:29]} 3. e3 {[%clk 1:29:40]}  g6 {[%clk 1:30:34]}
4. Bb2 {[%clk 1:30:00]}  Nf6 {[%clk 1:31:00]} 5. d4 {[%clk 1:27:03]}  cxd4 {[%clk 1:28:09]} 6. exd4 {[%clk 1:27:24]}  Bg7 {[%clk 1:28:21]}
7. Bd3 {[%clk 1:27:01]}  Nc6 {[%clk 1:26:37]} 8. Nbd2 {[%clk 1:23:47]}  O-O {[%clk 1:21:46]} 9. O-O {[%clk 1:10:02]}  Nb4 {[%clk 1:19:11]}
10. Ne5 {[%clk 1:07:34]}  Nxd3 {[%clk 1:17:07]} 11. cxd3 {[%clk 1:04:26]}  Nh5 {[%clk 1:14:54]} 12. f4 {[%clk 1:01:16]}  Qb6 {[%clk 1:05:53]}
13. Kh1 {[%clk 0:44:57]}  f6 {[%clk 1:00:20]} 14. Ng4 {[%clk 0:45:21]}  Qe6 {[%clk 0:59:49]} 15. f5 {[%clk 0:40:35]}  gxf5 {[%clk 0:56:50]}
16. Nf2 {[%clk 0:39:33]}  Nf4 {[%clk 0:55:51]} 17. Ba3 {[%clk 0:36:48]}  Qf7 {[%clk 0:53:26]} 18. Qf3 {[%clk 0:34:55]}  Ng6 {[%clk 0:52:27]}
19. Rac1 {[%clk 0:35:16]}  Bh6 {[%clk 0:51:40]} 20. Rfd1 {[%clk 0:35:36]}  Be6 {[%clk 0:48:18]} 21. Rc7 {[%clk 0:18:03]}  b6 {[%clk 0:41:26]}
22. g4 {[%clk 0:18:08]}  f4 {[%clk 0:38:18]} 23. h4 {[%clk 0:16:12]}  Rfc8 {[%clk 0:36:31]} 24. Rdc1 {[%clk 0:13:46]}  Nxh4 {[%clk 0:32:54]}
25. Qh3 {[%clk 0:14:12]}  Bg5 {[%clk 0:27:01]} 26. Bxe7 {[%clk 0:14:29]}  Rxc7 {[%clk 0:25:59]} 27. Rxc7 {[%clk 0:14:54]}  Rc8 {[%clk 0:26:26]}
28. Rxc8+ {[%clk 0:12:04]}  Bxc8 {[%clk 0:26:52]} 29. Ba3 {[%clk 0:12:05]}  Qe6 {[%clk 0:21:51]} 30. Nf3 {[%clk 0:11:18]}  Qe2 {[%clk 0:15:37]}
31. Nxh4 {[%clk 0:11:25]}  Qxf2 {[%clk 0:16:02]} 32. Nf3 {[%clk 0:10:57]}  h5 {[%clk 0:13:47]} 33. Nxg5 {[%clk 0:05:54]}  Bxg4 {[%clk 0:13:37]}
34. Qh2 {[%clk 0:06:03]}  Qe1+ {[%clk 0:12:16]} 35. Qg1 {[%clk 0:05:33]}  Qh4+ {[%clk 0:12:39]} 36. Qh2 {[%clk 0:05:51]}  Qxg5 {[%clk 0:11:51]}
37. Qf2 {[%clk 0:06:15]}  f3 {[%clk 0:10:13]} 38. Qe1 {[%clk 0:05:20]}  Bd7 {[%clk 0:09:23]} 39. Qf2 {[%clk 0:05:30]}  Qf4 {[%clk 0:08:18]}
40. Bb4 {[%clk 0:05:30]}  Bh3 {[%clk 0:06:26]} 41. Bd2 {[%clk 0:03:44]}  Bg2+ {[%clk 0:04:50]} 42. Kg1 {[%clk 0:04:09]}  Qg4 {[%clk 0:05:01]}
43. Be1 {[%clk 0:04:02]}  Kf7 {[%clk 0:03:56]} 44. b4 {[%clk 0:03:15]}  Qh3 {[%clk 0:28:51]} 45. Qh4 {[%clk 0:33:05]}  Qf5 {[%clk 0:29:15]}
46. Bf2 {[%clk 0:33:00]}  Ke6 {[%clk 0:22:12]} 47. Qg3 {[%clk 0:32:02]}  Qg5 {[%clk 0:21:24]} 48. Kh2 {[%clk 0:30:36]}  Qg4 {[%clk 0:18:08]}
49. a3 {[%clk 0:28:40]}  Kf5 {[%clk 0:18:01]} 50. a4 {[%clk 0:28:49]}  a6 {[%clk 0:17:01]} 51. Kg1 {[%clk 0:25:08]}  Qg5 {[%clk 0:17:18]}
52. Qc7 {[%clk 0:23:31]}  Bh3+ {[%clk 0:15:31]} 53. Bg3 {[%clk 0:22:41]}  h4 {[%clk 0:13:15]} 54. Qd7+ {[%clk 0:12:48]}  Kg6 {[%clk 0:13:34]}
55. Qe8+ {[%clk 0:13:13]}  Kg7 {[%clk 0:13:53]} 56. Qe7+ {[%clk 0:12:49]}  Kh6 {[%clk 0:14:10]} 57. Qf8+ {[%clk 0:12:48]}  Kh5 {[%clk 0:14:32]}
58. Qe8+ {[%clk 0:12:02]}  Kg4 {[%clk 0:14:54]} 59. Bxh4 {[%clk 0:06:41]}  Kxh4+ {[%clk 0:15:12]} 60. Kf2 {[%clk 0:07:02]}  Qg2+ {[%clk 0:15:25]} 0-1

[Event "2026 European Womens Championship"]
[Site "Batumi, GE"]
[Date "2026.06.05"]
[Round "11"]
[White "Schneider, Jana"]
[Black "Bulmaga, Irina"]
[Result "1/2-1/2"]
[Board "21"]
[TimeControl "5400+30"]
[WhiteFideId "12924997"]
[BlackFideId "13903063"]
[WhiteElo "2283"]
[BlackElo "2361"]
[WhiteTitle "WGM"]
[BlackTitle "IM"]
[WhiteClock "0:10:24"]
[BlackClock "0:09:52"]
[Variant "Standard"]

1. e4 {[%clk 1:30:56]}  e5 {[%clk 1:30:55]} 2. Nf3 {[%clk 1:31:19]}  d6 {[%clk 1:31:18]} 3. d4 {[%clk 1:30:33]}  exd4 {[%clk 1:31:39]}
4. Nxd4 {[%clk 1:30:50]}  Nf6 {[%clk 1:31:55]} 5. Nc3 {[%clk 1:30:59]}  Be7 {[%clk 1:32:16]} 6. Bc4 {[%clk 1:29:18]}  O-O {[%clk 1:31:25]}
7. O-O {[%clk 1:29:16]}  Re8 {[%clk 1:31:13]} 8. Re1 {[%clk 1:28:03]}  c6 {[%clk 1:31:15]} 9. a4 {[%clk 1:26:52]}  Bf8 {[%clk 1:27:19]}
10. a5 {[%clk 1:20:12]}  d5 {[%clk 1:05:41]} 11. exd5 {[%clk 1:19:21]}  Rxe1+ {[%clk 1:06:02]} 12. Qxe1 {[%clk 1:19:46]}  cxd5 {[%clk 1:06:09]}
13. Bb3 {[%clk 1:14:54]}  Nc6 {[%clk 1:05:28]} 14. Nce2 {[%clk 1:10:56]}  h6 {[%clk 0:40:26]} 15. a6 {[%clk 1:07:44]}  Nxd4 {[%clk 0:39:39]}
16. Nxd4 {[%clk 1:07:57]}  bxa6 {[%clk 0:38:59]} 17. Bf4 {[%clk 1:00:30]}  Bd6 {[%clk 0:34:56]} 18. Nc6 {[%clk 0:54:37]}  Qc7 {[%clk 0:35:23]}
19. Bxd6 {[%clk 0:54:17]}  Qxd6 {[%clk 0:31:11]} 20. Ne7+ {[%clk 0:53:52]}  Kf8 {[%clk 0:31:10]} 21. Nxd5 {[%clk 0:46:03]}  Nxd5 {[%clk 0:31:29]}
22. Rd1 {[%clk 0:44:49]}  Bb7 {[%clk 0:27:07]} 23. Bxd5 {[%clk 0:44:35]}  Bxd5 {[%clk 0:27:10]} 24. Qd2 {[%clk 0:40:28]}  Rc8 {[%clk 0:25:34]}
25. c3 {[%clk 0:35:19]}  Rc5 {[%clk 0:25:33]} 26. b4 {[%clk 0:35:06]}  Rc6 {[%clk 0:14:37]} 27. g3 {[%clk 0:30:14]}  Ke7 {[%clk 0:14:25]}
28. Qe3+ {[%clk 0:26:51]}  Kd8 {[%clk 0:07:41]} 29. Qd4 {[%clk 0:24:32]}  Qd7 {[%clk 0:03:00]} 30. Qe5 {[%clk 0:15:16]}  Rd6 {[%clk 0:02:02]}
31. c4 {[%clk 0:15:11]}  f6 {[%clk 0:02:01]} 32. Qf4 {[%clk 0:07:57]}  g5 {[%clk 0:02:30]} 33. Qd4 {[%clk 0:05:02]}  Bf3 {[%clk 0:02:57]}
34. Qxd6 {[%clk 0:05:17]}  Bxd1 {[%clk 0:03:25]} 35. Qxf6+ {[%clk 0:05:35]}  Kc8 {[%clk 0:02:29]} 36. Qxa6+ {[%clk 0:05:07]}  Kb8 {[%clk 0:02:51]}
37. Qxh6 {[%clk 0:03:46]}  g4 {[%clk 0:00:42]} 38. h4 {[%clk 0:00:59]}  gxh3 {[%clk 0:00:37]} 39. Kh2 {[%clk 0:00:37]}  Bg4 {[%clk 0:00:51]}
40. Qf4+ {[%clk 0:00:43]}  Kc8 {[%clk 0:00:36]} 41. f3 {[%clk 0:27:43]}  Be6 {[%clk 0:30:07]} 42. c5 {[%clk 0:16:42]}  Qd1 {[%clk 0:14:02]}
43. g4 {[%clk 0:16:22]}  Bd5 {[%clk 0:13:24]} 44. Qf5+ {[%clk 0:12:26]}  Kc7 {[%clk 0:12:43]} 45. Kxh3 {[%clk 0:09:45]}  Qxf3+ {[%clk 0:10:43]}
46. Qxf3 {[%clk 0:10:08]}  Bxf3 {[%clk 0:11:09]} 47. Kg3 {[%clk 0:09:07]}  Bxg4 {[%clk 0:08:07]} 48. Kxg4 {[%clk 0:09:29]}  Kc6 {[%clk 0:08:35]}
49. Kf3 {[%clk 0:09:42]}  a5 {[%clk 0:09:03]} 50. bxa5 {[%clk 0:09:59]}  Kxc5 {[%clk 0:09:30]} 51. a6 {[%clk 0:10:22]}  Kb6 {[%clk 0:09:58]}
52. a7 {[%clk 0:10:46]}  Kxa7 {[%clk 0:09:52]} 53. Ke4 {[%clk 0:10:24]} 1/2-1/2